[Event "Titled Tuesday Blitz December 27 Early 2022"]
[White "Orozbaev, Eldiar"]
[Black "Barp, Alberto"]
[WhiteFideId "13802240"]
[BlackFideId "872555"]
[WhiteElo "2235"]
[BlackElo "2432"]
[Result "0-1"]
[Round "02"]
[TimeControl "180+2"]
[Date "2022.12.27"]
[WhiteClock "0:00:02"]
[BlackClock "0:00:15"]

1. e4 {[%clk 0:02:51]}  e6 {[%clk 0:02:46]} 2. d4 {[%clk 0:02:44]}  d5 {[%clk 0:02:46]} 3. Nd2 {[%clk 0:02:45]}  c5 {[%clk 0:02:40]} 4. Ngf3 {[%clk 0:02:44]}  cxd4 {[%clk 0:02:39]} 5. Nxd4 {[%clk 0:02:44]}  Nc6 {[%clk 0:02:40]} 6. Bb5 {[%clk 0:02:45]}  Bd7 {[%clk 0:02:40]} 7. Nxc6 {[%clk 0:02:45]}  bxc6 {[%clk 0:02:41]} 8. Bd3 {[%clk 0:02:45]}  Bd6 {[%clk 0:02:41]} 9. Qe2 {[%clk 0:02:35]}  Ne7 {[%clk 0:02:41]} 10. O-O {[%clk 0:02:30]}  Ng6 {[%clk 0:02:38]} 11. g3 {[%clk 0:02:27]}  Ne5 {[%clk 0:02:35]} 12. f4 {[%clk 0:02:26]}  Nxd3 {[%clk 0:02:31]} 13. cxd3 {[%clk 0:02:27]}  O-O {[%clk 0:02:29]} 14. Nf3 {[%clk 0:02:26]}  c5 {[%clk 0:01:59]} 15. Be3 {[%clk 0:02:22]}  Bc6 {[%clk 0:01:56]} 16. e5 {[%clk 0:02:17]}  Be7 {[%clk 0:01:57]} 17. Rac1 {[%clk 0:02:15]}  d4 {[%clk 0:01:53]} 18. Bf2 {[%clk 0:02:15]}  Qd5 {[%clk 0:01:53]} 19. Be1 {[%clk 0:02:07]}  Qxa2 {[%clk 0:01:53]} 20. Nxd4 {[%clk 0:02:03]}  Bb7 {[%clk 0:01:50]} 21. Nf3 {[%clk 0:01:47]}  Qd5 {[%clk 0:01:49]} 22. Bc3 {[%clk 0:01:38]}  Rfd8 {[%clk 0:01:48]} 23. Rcd1 {[%clk 0:01:38]}  Rd7 {[%clk 0:01:40]} 24. Kg2 {[%clk 0:01:32]}  Rad8 {[%clk 0:01:36]} 25. g4 {[%clk 0:01:25]}  c4 {[%clk 0:01:25]} 26. d4 {[%clk 0:01:15]}  a5 {[%clk 0:01:19]} 27. Kg3 {[%clk 0:01:12]}  Bb4 {[%clk 0:01:18]} 28. Ng5 {[%clk 0:01:07]}  h6 {[%clk 0:01:14]} 29. Nf3 {[%clk 0:01:06]}  Bxc3 {[%clk 0:01:12]} 30. bxc3 {[%clk 0:01:02]}  Ba8 {[%clk 0:01:10]} 31. Nd2 {[%clk 0:01:00]}  Rc8 {[%clk 0:01:10]} 32. Ra1 {[%clk 0:00:58]}  Rb7 {[%clk 0:01:07]} 33. Ra2 {[%clk 0:00:58]}  Rb3 {[%clk 0:01:04]} 34. Rc1 {[%clk 0:00:43]}  Rcb8 {[%clk 0:00:43]} 35. Nxc4 {[%clk 0:00:37]}  Qxd4 {[%clk 0:00:37]} 36. Ne3 {[%clk 0:00:06]}  Rxc3 {[%clk 0:00:35]} 37. Rxc3 {[%clk 0:00:07]}  Qxc3 {[%clk 0:00:36]} 38. Kf2 {[%clk 0:00:08]}  Qd4 {[%clk 0:00:32]} 39. Qc4 {[%clk 0:00:08]}  Qxc4 {[%clk 0:00:26]} 40. Nxc4 {[%clk 0:00:08]}  Bd5 {[%clk 0:00:26]} 41. Ra4 {[%clk 0:00:08]}  Rb4 {[%clk 0:00:25]} 42. Rxb4 {[%clk 0:00:07]}  axb4 {[%clk 0:00:26]} 43. Nb2 {[%clk 0:00:05]}  f6 {[%clk 0:00:23]} 44. Ke3 {[%clk 0:00:04]}  Kf7 {[%clk 0:00:23]} 45. Kd4 {[%clk 0:00:05]}  g5 {[%clk 0:00:20]} 46. fxg5 {[%clk 0:00:03]}  hxg5 {[%clk 0:00:19]} 47. Nd3 {[%clk 0:00:02]}  b3 {[%clk 0:00:18]} 48. Kc3 {[%clk 0:00:03]}  fxe5 {[%clk 0:00:18]} 49. Nxe5+ {[%clk 0:00:03]}  Kf6 {[%clk 0:00:18]} 50. Nd7+ {[%clk 0:00:02]}  Ke7 {[%clk 0:00:18]} 51. Nb6 {[%clk 0:00:03]}  Kd6 {[%clk 0:00:18]} 52. Nc8+ {[%clk 0:00:03]}  Ke5 {[%clk 0:00:18]} 53. Ne7 {[%clk 0:00:03]}  Kf4 {[%clk 0:00:17]} 54. h3 {[%clk 0:00:03]}  Kg3 {[%clk 0:00:16]} 55. Ng8 {[%clk 0:00:02]}  Kxh3 {[%clk 0:00:16]} 56. Nf6 {[%clk 0:00:03]}  Kg3 {[%clk 0:00:16]} 57. Kb2 {[%clk 0:00:03]}  Kf4 {[%clk 0:00:16]} 58. Kc3 {[%clk 0:00:03]}  Ke5 {[%clk 0:00:15]} 59. Nh7 {[%clk 0:00:03]}  Kf4 {[%clk 0:00:15]} 60. Nf6 {[%clk 0:00:04]}  Bc4 {[%clk 0:00:13]} 61. Kb2 {[%clk 0:00:02]}  e5 {[%clk 0:00:13]} 62. Kc3 {[%clk 0:00:02]}  Be6 {[%clk 0:00:14]} 63. Kb2 {[%clk 0:00:02]}  e4 {[%clk 0:00:14]} 64. Kc3 {[%clk 0:00:03]}  e3 {[%clk 0:00:15]} 65. Nh5+ {[%clk 0:00:02]}  Kf3 {[%clk 0:00:15]} 0-1


[Site "https://www.chess.com"]

[Event "Titled Tuesday Blitz December 27 Early 2022"]
[White "Ozates, Tuna"]
[Black "Alice, Mateus Felizardo Viageiro"]
[WhiteFideId "6354521"]
[BlackFideId "14800047"]
[WhiteElo "2251"]
[BlackElo "2202"]
[Result "0-1"]
[Round "02"]
[TimeControl "180+2"]
[Date "2022.12.27"]
[WhiteClock "0:01:31"]
[BlackClock "0:01:22"]

1. e4 {[%clk 0:03:00]}  c5 {[%clk 0:02:59]} 2. Nf3 {[%clk 0:03:00]}  d6 {[%clk 0:02:59]} 3. Bb5+ {[%clk 0:03:01]}  Bd7 {[%clk 0:02:58]} 4. Bxd7+ {[%clk 0:03:01]}  Qxd7 {[%clk 0:02:58]} 5. O-O {[%clk 0:03:02]}  Nc6 {[%clk 0:02:56]} 6. c3 {[%clk 0:03:02]}  g6 {[%clk 0:02:56]} 7. d4 {[%clk 0:03:02]}  cxd4 {[%clk 0:02:55]} 8. cxd4 {[%clk 0:03:03]}  Bg7 {[%clk 0:02:55]} 9. Nc3 {[%clk 0:03:03]}  Nf6 {[%clk 0:02:55]} 10. Bg5 {[%clk 0:03:02]}  O-O {[%clk 0:02:54]} 11. Re1 {[%clk 0:03:02]}  Rfc8 {[%clk 0:02:54]} 12. Qd2 {[%clk 0:03:01]}  e6 {[%clk 0:02:54]} 13. Rad1 {[%clk 0:03:00]}  Na5 {[%clk 0:02:49]} 14. e5 {[%clk 0:03:00]}  Nc4 {[%clk 0:02:48]} 15. Qe2 {[%clk 0:03:00]}  Ne8 {[%clk 0:02:35]} 16. Ne4 {[%clk 0:02:57]}  d5 {[%clk 0:02:14]} 17. Nf6+ {[%clk 0:02:57]}  Nxf6 {[%clk 0:02:14]} 18. exf6 {[%clk 0:02:51]}  Bf8 {[%clk 0:02:14]} 19. Ne5 {[%clk 0:02:50]}  Qc7 {[%clk 0:02:07]} 20. Rc1 {[%clk 0:02:38]}  Qa5 {[%clk 0:01:58]} 21. Rxc4 {[%clk 0:02:34]}  dxc4 {[%clk 0:01:57]} 22. Qe3 {[%clk 0:02:33]}  Rd8 {[%clk 0:01:49]} 23. Rd1 {[%clk 0:02:28]}  Qxa2 {[%clk 0:01:45]} 24. Bh6 {[%clk 0:02:27]}  Qb3 {[%clk 0:01:45]} 25. Rd3 {[%clk 0:01:40]}  cxd3 {[%clk 0:01:24]} 26. h4 {[%clk 0:01:40]}  Qd1+ {[%clk 0:01:23]} 27. Kh2 {[%clk 0:01:40]}  Qe2 {[%clk 0:01:22]} 28. Qg5 {[%clk 0:01:31]}  Qh5 {[%clk 0:01:22]} 0-1


[Site "https://www.chess.com"]

[Event "Titled Tuesday Blitz December 27 Early 2022"]
[White "Ozen, Bahadir"]
[Black "Iskusnyh, Sergei"]
[WhiteFideId "6337058"]
[BlackFideId "4120027"]
[WhiteElo "2369"]
[BlackElo "2440"]
[Result "1-0"]
[Round "02"]
[TimeControl "180+2"]
[Date "2022.12.27"]
[WhiteClock "0:00:19"]
[BlackClock "0:00:00"]

1. g3 {[%clk 0:03:00]}  d5 {[%clk 0:01:59]} 2. Nf3 {[%clk 0:02:59]}  Nf6 {[%clk 0:01:56]} 3. Bg2 {[%clk 0:02:59]}  c6 {[%clk 0:01:56]} 4. O-O {[%clk 0:02:59]}  Bf5 {[%clk 0:01:56]} 5. d3 {[%clk 0:02:59]}  e6 {[%clk 0:01:56]} 6. Nh4 {[%clk 0:02:59]}  Bg6 {[%clk 0:01:55]} 7. Nxg6 {[%clk 0:02:58]}  hxg6 {[%clk 0:01:53]} 8. Nd2 {[%clk 0:02:59]}  Be7 {[%clk 0:01:50]} 9. e4 {[%clk 0:02:59]}  dxe4 {[%clk 0:01:49]} 10. dxe4 {[%clk 0:03:00]}  e5 {[%clk 0:01:46]} 11. Qe2 {[%clk 0:03:01]}  Nbd7 {[%clk 0:01:45]} 12. Nb3 {[%clk 0:02:45]}  Qc7 {[%clk 0:01:43]} 13. Be3 {[%clk 0:02:43]}  O-O {[%clk 0:01:38]} 14. a4 {[%clk 0:02:44]}  Rfe8 {[%clk 0:01:28]} 15. Rfd1 {[%clk 0:02:42]}  Nf8 {[%clk 0:01:25]} 16. c3 {[%clk 0:02:38]}  Ne6 {[%clk 0:01:23]} 17. Bh3 {[%clk 0:01:58]}  Bf8 {[%clk 0:01:21]} 18. f3 {[%clk 0:01:58]}  Nd7 {[%clk 0:01:07]} 19. Bxe6 {[%clk 0:01:57]}  Rxe6 {[%clk 0:01:02]} 20. a5 {[%clk 0:01:58]}  Ree8 {[%clk 0:00:55]} 21. Qd3 {[%clk 0:01:34]}  Red8 {[%clk 0:00:49]} 22. Qc4 {[%clk 0:01:34]}  b5 {[%clk 0:00:44]} 23. axb6 {[%clk 0:01:35]}  axb6 {[%clk 0:00:43]} 24. Kg2 {[%clk 0:01:28]}  b5 {[%clk 0:00:39]} 25. Qe2 {[%clk 0:01:28]}  Nb6 {[%clk 0:00:36]} 26. Nd2 {[%clk 0:01:02]}  Na4 {[%clk 0:00:32]} 27. Nb3 {[%clk 0:01:02]}  Rxd1 {[%clk 0:00:28]} 28. Rxd1 {[%clk 0:01:02]}  Rd8 {[%clk 0:00:26]} 29. Rxd8 {[%clk 0:00:42]}  Qxd8 {[%clk 0:00:25]} 30. Qc2 {[%clk 0:00:43]}  c5 {[%clk 0:00:20]} 31. Nd2 {[%clk 0:00:39]}  c4 {[%clk 0:00:19]} 32. Nxc4 {[%clk 0:00:37]}  Nxc3 {[%clk 0:00:14]} 33. Qxc3 {[%clk 0:00:32]}  bxc4 {[%clk 0:00:13]} 34. Qxc4 {[%clk 0:00:33]}  Qb8 {[%clk 0:00:10]} 35. b3 {[%clk 0:00:33]}  Be7 {[%clk 0:00:10]} 36. Bd2 {[%clk 0:00:28]}  Qd8 {[%clk 0:00:08]} 37. Be1 {[%clk 0:00:29]}  Qd1 {[%clk 0:00:04]} 38. Bf2 {[%clk 0:00:23]}  Qb1 {[%clk 0:00:03]} 39. Qc8+ {[%clk 0:00:19]}  Kh7 {[%clk 0:00:00]} 40. Qb7 {[%clk 0:00:19]} 1-0


[Site "https://www.chess.com"]

[Event "Titled Tuesday Blitz December 27 Early 2022"]
[White "Pakleza, Zbigniew"]
[Black "Nguyen Hong Nhung"]
[WhiteFideId "1119290"]
[BlackFideId "12412201"]
[WhiteElo "2494"]
[BlackElo "2003"]
[Result "1-0"]
[Round "02"]
[TimeControl "180+2"]
[Date "2022.12.27"]
[WhiteClock "0:00:51"]
[BlackClock "0:00:27"]

1. d4 {[%clk 0:03:00]}  f5 {[%clk 0:02:59]} 2. Nf3 {[%clk 0:03:01]}  Nf6 {[%clk 0:02:59]} 3. c4 {[%clk 0:03:01]}  g6 {[%clk 0:03:00]} 4. Nc3 {[%clk 0:03:02]}  Bg7 {[%clk 0:03:01]} 5. e3 {[%clk 0:03:03]}  O-O {[%clk 0:03:01]} 6. Be2 {[%clk 0:03:03]}  d6 {[%clk 0:03:01]} 7. b4 {[%clk 0:03:04]}  Qe8 {[%clk 0:03:01]} 8. O-O {[%clk 0:03:04]}  e5 {[%clk 0:03:01]} 9. a4 {[%clk 0:03:04]}  e4 {[%clk 0:03:00]} 10. Nd2 {[%clk 0:03:04]}  Nc6 {[%clk 0:02:59]} 11. b5 {[%clk 0:03:03]}  Nd8 {[%clk 0:02:59]} 12. Ba3 {[%clk 0:03:01]}  Be6 {[%clk 0:02:57]} 13. c5 {[%clk 0:03:00]}  dxc5 {[%clk 0:02:54]} 14. Bxc5 {[%clk 0:02:56]}  Rf7 {[%clk 0:02:54]} 15. Rc1 {[%clk 0:02:49]}  Rd7 {[%clk 0:02:49]} 16. Qc2 {[%clk 0:02:40]}  Nf7 {[%clk 0:02:43]} 17. Rfd1 {[%clk 0:02:34]}  g5 {[%clk 0:02:34]} 18. a5 {[%clk 0:02:32]}  Nd5 {[%clk 0:02:20]} 19. Nxd5 {[%clk 0:02:25]}  Bxd5 {[%clk 0:02:21]} 20. Bc4 {[%clk 0:02:21]}  Qe6 {[%clk 0:02:00]} 21. Bxd5 {[%clk 0:02:08]}  Qxd5 {[%clk 0:02:01]} 22. Qc4 {[%clk 0:01:57]}  b6 {[%clk 0:01:46]} 23. Bb4 {[%clk 0:01:54]}  Qxc4 {[%clk 0:01:39]} 24. Rxc4 {[%clk 0:01:52]}  Nd6 {[%clk 0:01:35]} 25. Bxd6 {[%clk 0:01:52]}  cxd6 {[%clk 0:01:36]} 26. a6 {[%clk 0:01:45]}  d5 {[%clk 0:01:34]} 27. Rc6 {[%clk 0:01:44]}  Kf7 {[%clk 0:01:32]} 28. Rdc1 {[%clk 0:01:43]}  Ke7 {[%clk 0:01:32]} 29. Kf1 {[%clk 0:01:39]}  Rad8 {[%clk 0:01:27]} 30. Ke2 {[%clk 0:01:38]}  f4 {[%clk 0:01:22]} 31. Rc7 {[%clk 0:01:08]}  Rb8 {[%clk 0:01:00]} 32. R1c6 {[%clk 0:01:04]}  Kd8 {[%clk 0:00:51]} 33. Rxd7+ {[%clk 0:01:04]}  Kxd7 {[%clk 0:00:52]} 34. Nb1 {[%clk 0:01:02]}  g4 {[%clk 0:00:41]} 35. Nc3 {[%clk 0:00:56]}  f3+ {[%clk 0:00:40]} 36. Kf1 {[%clk 0:00:56]}  fxg2+ {[%clk 0:00:37]} 37. Kxg2 {[%clk 0:00:57]}  Bf6 {[%clk 0:00:31]} 38. Nxd5 {[%clk 0:00:55]}  Bh4 {[%clk 0:00:31]} 39. Rh6 {[%clk 0:00:54]}  Bg5 {[%clk 0:00:29]} 40. Rxh7+ {[%clk 0:00:52]}  Kd6 {[%clk 0:00:29]} 41. Nc3 {[%clk 0:00:51]}  Ra8 {[%clk 0:00:27]} 42. Nxe4+ {[%clk 0:00:51]} 1-0


[Site "https://www.chess.com"]

[Event "Titled Tuesday Blitz December 27 Early 2022"]
[White "Peatman, Carter"]
[Black "Ohanyan, Emin"]
[WhiteFideId "2096480"]
[BlackFideId "13312022"]
[WhiteElo "1998"]
[BlackElo "2444"]
[Result "1-0"]
[Round "02"]
[TimeControl "180+2"]
[Date "2022.12.27"]
[WhiteClock "0:02:32"]
[BlackClock "0:02:32"]

1. d4 {[%clk 0:03:00]}  d5 {[%clk 0:02:49]} 2. Bf4 {[%clk 0:03:00]}  c6 {[%clk 0:02:46]} 3. e3 {[%clk 0:02:59]}  Nf6 {[%clk 0:02:46]} 4. c4 {[%clk 0:02:57]}  e6 {[%clk 0:02:46]} 5. Nc3 {[%clk 0:02:57]}  Bd6 {[%clk 0:02:46]} 6. Bg3 {[%clk 0:02:56]}  O-O {[%clk 0:02:46]} 7. Nf3 {[%clk 0:02:57]}  Bd7 {[%clk 0:02:47]} 8. Bxd6 {[%clk 0:02:55]}  Re8 {[%clk 0:02:47]} 9. Bg3 {[%clk 0:02:54]}  dxc4 {[%clk 0:02:37]} 10. Bxc4 {[%clk 0:02:53]}  b5 {[%clk 0:02:38]} 11. Bd3 {[%clk 0:02:53]}  a5 {[%clk 0:02:37]} 12. Ne4 {[%clk 0:02:48]}  Bc8 {[%clk 0:02:33]} 13. Rc1 {[%clk 0:02:41]}  Nbd7 {[%clk 0:02:33]} 14. Nd6 {[%clk 0:02:35]}  Rf8 {[%clk 0:02:32]} 15. Rxc6 {[%clk 0:02:32]} 1-0


[Site "https://www.chess.com"]

[Event "Titled Tuesday Blitz December 27 Early 2022"]
[White "Postnikov, Daniil"]
[Black "Sovetbekova, Nurai"]
[WhiteFideId "4166329"]
[BlackFideId "13801910"]
[WhiteElo "2360"]
[BlackElo "1764"]
[Result "1-0"]
[Round "02"]
[TimeControl "180+2"]
[Date "2022.12.27"]
[WhiteClock "0:00:17"]
[BlackClock "0:00:03"]

1. e4 {[%clk 0:02:59]}  c5 {[%clk 0:03:00]} 2. b4 {[%clk 0:02:56]}  cxb4 {[%clk 0:02:58]} 3. a3 {[%clk 0:02:55]}  e5 {[%clk 0:02:53]} 4. Bb2 {[%clk 0:02:52]}  Nc6 {[%clk 0:02:52]} 5. Nf3 {[%clk 0:02:49]}  Qc7 {[%clk 0:02:46]} 6. Bc4 {[%clk 0:02:44]}  Be7 {[%clk 0:02:33]} 7. O-O {[%clk 0:02:40]}  Nf6 {[%clk 0:02:32]} 8. d3 {[%clk 0:02:38]}  O-O {[%clk 0:02:29]} 9. axb4 {[%clk 0:02:37]}  Bxb4 {[%clk 0:02:21]} 10. Nc3 {[%clk 0:02:35]}  d6 {[%clk 0:02:10]} 11. Nd5 {[%clk 0:01:34]}  Nxd5 {[%clk 0:02:06]} 12. Bxd5 {[%clk 0:01:35]}  Bg4 {[%clk 0:01:57]} 13. h3 {[%clk 0:01:33]}  Bh5 {[%clk 0:01:48]} 14. g4 {[%clk 0:01:33]}  Bg6 {[%clk 0:01:48]} 15. Nh4 {[%clk 0:01:33]}  Ne7 {[%clk 0:01:43]} 16. Bb3 {[%clk 0:01:31]}  Bc3 {[%clk 0:01:35]} 17. Bxc3 {[%clk 0:01:27]}  Qxc3 {[%clk 0:01:36]} 18. Nf5 {[%clk 0:01:26]}  Bxf5 {[%clk 0:01:31]} 19. gxf5 {[%clk 0:01:27]}  Kh8 {[%clk 0:01:12]} 20. Kh1 {[%clk 0:01:22]}  d5 {[%clk 0:01:00]} 21. f6 {[%clk 0:01:15]}  gxf6 {[%clk 0:00:54]} 22. Qf3 {[%clk 0:01:14]}  f5 {[%clk 0:00:42]} 23. exd5 {[%clk 0:01:10]}  e4 {[%clk 0:00:38]} 24. Qe3 {[%clk 0:01:02]}  Qe5 {[%clk 0:00:17]} 25. f4 {[%clk 0:00:59]}  Qd6 {[%clk 0:00:12]} 26. Rg1 {[%clk 0:00:49]}  f6 {[%clk 0:00:09]} 27. dxe4 {[%clk 0:00:48]}  fxe4 {[%clk 0:00:08]} 28. Qxe4 {[%clk 0:00:49]}  Ng6 {[%clk 0:00:07]} 29. Raf1 {[%clk 0:00:21]}  Rae8 {[%clk 0:00:07]} 30. Qf3 {[%clk 0:00:20]}  a5 {[%clk 0:00:02]} 31. c4 {[%clk 0:00:19]}  b6 {[%clk 0:00:02]} 32. Bc2 {[%clk 0:00:19]}  Qc5 {[%clk 0:00:02]} 33. Bxg6 {[%clk 0:00:19]}  hxg6 {[%clk 0:00:03]} 34. Rxg6 {[%clk 0:00:19]}  Rf7 {[%clk 0:00:01]} 35. Rh6+ {[%clk 0:00:17]}  Rh7 {[%clk 0:00:01]} 36. Rxh7+ {[%clk 0:00:16]}  Kxh7 {[%clk 0:00:02]} 37. Qh5+ {[%clk 0:00:16]}  Kg7 {[%clk 0:00:03]} 38. Qxe8 {[%clk 0:00:16]}  Qe3 {[%clk 0:00:03]} 39. Rg1+ {[%clk 0:00:17]}  Kh6 {[%clk 0:00:03]} 40. Qg6# {[%clk 0:00:17]} 1-0


[Site "https://www.chess.com"]

[Event "Titled Tuesday Blitz December 27 Early 2022"]
[White "Qashashvili, Alexandre"]
[Black "Dimitrov, Atanas"]
[WhiteFideId "13600842"]
[BlackFideId "2901315"]
[WhiteElo "2505"]
[BlackElo "2269"]
[Result "1/2-1/2"]
[Round "02"]
[TimeControl "180+2"]
[Date "2022.12.27"]
[WhiteClock "0:00:48"]
[BlackClock "0:00:57"]

1. e4 {[%clk 0:02:48]}  c5 {[%clk 0:02:59]} 2. Nc3 {[%clk 0:02:48]}  Nc6 {[%clk 0:02:59]} 3. Nf3 {[%clk 0:02:47]}  d6 {[%clk 0:02:56]} 4. d4 {[%clk 0:02:46]}  cxd4 {[%clk 0:02:56]} 5. Nxd4 {[%clk 0:02:46]}  Bd7 {[%clk 0:02:56]} 6. Nxc6 {[%clk 0:02:46]}  Bxc6 {[%clk 0:02:55]} 7. Bd3 {[%clk 0:02:47]}  Nf6 {[%clk 0:02:55]} 8. O-O {[%clk 0:02:46]}  g6 {[%clk 0:02:52]} 9. Be3 {[%clk 0:02:44]}  Bg7 {[%clk 0:02:52]} 10. Qd2 {[%clk 0:02:44]}  Ng4 {[%clk 0:02:49]} 11. Bf4 {[%clk 0:02:43]}  O-O {[%clk 0:02:49]} 12. h3 {[%clk 0:02:42]}  Ne5 {[%clk 0:02:49]} 13. Bh6 {[%clk 0:02:42]}  Nxd3 {[%clk 0:02:47]} 14. Bxg7 {[%clk 0:02:41]}  Kxg7 {[%clk 0:02:47]} 15. cxd3 {[%clk 0:02:40]}  e6 {[%clk 0:02:38]} 16. d4 {[%clk 0:02:39]}  Qf6 {[%clk 0:02:34]} 17. d5 {[%clk 0:02:31]}  exd5 {[%clk 0:02:32]} 18. Nxd5 {[%clk 0:02:32]}  Bxd5 {[%clk 0:02:33]} 19. Qxd5 {[%clk 0:02:32]}  b6 {[%clk 0:02:23]} 20. b3 {[%clk 0:02:26]}  Rfe8 {[%clk 0:02:20]} 21. Rad1 {[%clk 0:02:24]}  Rad8 {[%clk 0:02:18]} 22. Rfe1 {[%clk 0:02:04]}  Re5 {[%clk 0:02:15]} 23. Qd4 {[%clk 0:01:57]}  Ra5 {[%clk 0:02:05]} 24. Qxf6+ {[%clk 0:01:56]}  Kxf6 {[%clk 0:02:06]} 25. Rd2 {[%clk 0:01:53]}  Ke6 {[%clk 0:02:06]} 26. Red1 {[%clk 0:01:50]}  Re5 {[%clk 0:02:03]} 27. f3 {[%clk 0:01:49]}  f5 {[%clk 0:01:50]} 28. exf5+ {[%clk 0:01:47]}  gxf5 {[%clk 0:01:50]} 29. Kf2 {[%clk 0:01:46]}  d5 {[%clk 0:01:43]} 30. Re1 {[%clk 0:01:44]}  Rxe1 {[%clk 0:01:39]} 31. Kxe1 {[%clk 0:01:45]}  Ke5 {[%clk 0:01:35]} 32. g4 {[%clk 0:01:36]}  fxg4 {[%clk 0:01:24]} 33. hxg4 {[%clk 0:01:24]}  Rh8 {[%clk 0:01:14]} 34. Kf2 {[%clk 0:01:22]}  h5 {[%clk 0:01:13]} 35. gxh5 {[%clk 0:01:12]}  Rxh5 {[%clk 0:01:14]} 36. Ke3 {[%clk 0:01:11]}  Rh1 {[%clk 0:01:10]} 37. f4+ {[%clk 0:01:06]}  Ke6 {[%clk 0:01:06]} 38. Kd4 {[%clk 0:00:59]}  Re1 {[%clk 0:01:05]} 39. f5+ {[%clk 0:00:55]}  Kd6 {[%clk 0:00:57]} 40. Rf2 {[%clk 0:00:55]}  Re4+ {[%clk 0:00:57]} 41. Kd3 {[%clk 0:00:54]}  Re7 {[%clk 0:00:57]} 42. f6 {[%clk 0:00:53]}  Rf7 {[%clk 0:00:58]} 43. Kd4 {[%clk 0:00:48]}  Ke6 {[%clk 0:00:57]} 1/2-1/2


[Site "https://www.chess.com"]

[Event "Titled Tuesday Blitz December 27 Early 2022"]
[White "Quinones Garcia, Santiago"]
[Black "Saleem, Arshaq"]
[WhiteFideId "4408497"]
[BlackFideId "2081857"]
[WhiteElo "2248"]
[BlackElo "2133"]
[Result "1-0"]
[Round "02"]
[TimeControl "180+2"]
[Date "2022.12.27"]
[WhiteClock "0:00:23"]
[BlackClock "0:00:02"]

1. d4 {[%clk 0:02:53]}  Nf6 {[%clk 0:02:58]} 2. c4 {[%clk 0:02:54]}  g6 {[%clk 0:02:59]} 3. Nc3 {[%clk 0:02:54]}  Bg7 {[%clk 0:02:59]} 4. e4 {[%clk 0:02:55]}  d6 {[%clk 0:03:00]} 5. Nf3 {[%clk 0:02:54]}  O-O {[%clk 0:03:00]} 6. h3 {[%clk 0:02:55]}  e5 {[%clk 0:02:55]} 7. d5 {[%clk 0:02:54]}  Nh5 {[%clk 0:02:48]} 8. Be3 {[%clk 0:02:53]}  Na6 {[%clk 0:02:48]} 9. g3 {[%clk 0:02:52]}  Qe8 {[%clk 0:02:48]} 10. Be2 {[%clk 0:02:52]}  f5 {[%clk 0:02:41]} 11. exf5 {[%clk 0:02:52]}  gxf5 {[%clk 0:02:42]} 12. Nd2 {[%clk 0:02:44]}  Nf6 {[%clk 0:02:36]} 13. Qc2 {[%clk 0:02:36]}  Bd7 {[%clk 0:02:24]} 14. O-O-O {[%clk 0:02:35]}  c6 {[%clk 0:02:23]} 15. f4 {[%clk 0:02:26]}  cxd5 {[%clk 0:02:21]} 16. cxd5 {[%clk 0:02:25]}  Rc8 {[%clk 0:02:10]} 17. Kb1 {[%clk 0:02:23]}  exf4 {[%clk 0:02:02]} 18. Bxf4 {[%clk 0:02:20]}  Rxc3 {[%clk 0:01:54]} 19. Qxc3 {[%clk 0:02:18]}  Qxe2 {[%clk 0:01:47]} 20. Rhe1 {[%clk 0:02:16]}  Qb5 {[%clk 0:01:40]} 21. Re7 {[%clk 0:02:11]}  Nb4 {[%clk 0:01:27]} 22. Bxd6 {[%clk 0:02:04]}  Nbxd5 {[%clk 0:01:12]} 23. Rxg7+ {[%clk 0:01:58]}  Kxg7 {[%clk 0:01:09]} 24. Bxf8+ {[%clk 0:01:58]}  Kxf8 {[%clk 0:01:10]} 25. Qa3+ {[%clk 0:01:50]}  Kg7 {[%clk 0:01:04]} 26. Nb3 {[%clk 0:01:43]}  Qe2 {[%clk 0:00:58]} 27. Rc1 {[%clk 0:01:41]}  Qe4+ {[%clk 0:00:36]} 28. Ka1 {[%clk 0:01:41]}  Ne3 {[%clk 0:00:36]} 29. Qc5 {[%clk 0:01:34]}  Bc6 {[%clk 0:00:30]} 30. Nd4 {[%clk 0:01:23]}  Bd5 {[%clk 0:00:13]} 31. a3 {[%clk 0:01:16]}  Kg6 {[%clk 0:00:09]} 32. Ne2 {[%clk 0:01:12]}  Nh5 {[%clk 0:00:05]} 33. Qd6+ {[%clk 0:01:07]}  Qe6 {[%clk 0:00:03]} 34. Qd8 {[%clk 0:00:48]}  Nc4 {[%clk 0:00:02]} 35. Nf4+ {[%clk 0:00:44]}  Nxf4 {[%clk 0:00:02]} 36. gxf4 {[%clk 0:00:45]}  Qe3 {[%clk 0:00:01]} 37. Qg5+ {[%clk 0:00:43]}  Kf7 {[%clk 0:00:01]} 38. Qxf5+ {[%clk 0:00:43]}  Ke7 {[%clk 0:00:01]} 39. Qxh7+ {[%clk 0:00:34]}  Bf7 {[%clk 0:00:01]} 40. Qc2 {[%clk 0:00:31]}  Qxf4 {[%clk 0:00:01]} 41. Re1+ {[%clk 0:00:29]}  Kf8 {[%clk 0:00:02]} 42. Qe2 {[%clk 0:00:24]}  Qf6 {[%clk 0:00:02]} 43. Rf1 {[%clk 0:00:23]} 1-0


[Site "https://www.chess.com"]

[Event "Titled Tuesday Blitz December 27 Early 2022"]
[White "Rohith Krishna S"]
[Black "Erzhanov, Arman"]
[WhiteFideId "46617051"]
[BlackFideId "4138821"]
[WhiteElo "2385"]
[BlackElo "2228"]
[Result "1-0"]
[Round "02"]
[TimeControl "180+2"]
[Date "2022.12.27"]
[WhiteClock "0:01:58"]
[BlackClock "0:01:01"]

1. Nf3 {[%clk 0:03:00]}  d6 {[%clk 0:02:59]} 2. d4 {[%clk 0:03:00]}  g6 {[%clk 0:02:59]} 3. e4 {[%clk 0:02:59]}  Bg7 {[%clk 0:02:59]} 4. Nc3 {[%clk 0:03:00]}  Nf6 {[%clk 0:02:58]} 5. Bc4 {[%clk 0:02:58]}  O-O {[%clk 0:02:58]} 6. Bg5 {[%clk 0:02:57]}  c6 {[%clk 0:02:59]} 7. Bb3 {[%clk 0:02:55]}  Nbd7 {[%clk 0:02:59]} 8. O-O {[%clk 0:02:55]}  e5 {[%clk 0:02:59]} 9. dxe5 {[%clk 0:02:53]}  dxe5 {[%clk 0:02:59]} 10. Qd6 {[%clk 0:02:53]}  h6 {[%clk 0:02:48]} 11. Bh4 {[%clk 0:02:52]}  Re8 {[%clk 0:02:46]} 12. Rad1 {[%clk 0:02:51]}  Qe7 {[%clk 0:02:44]} 13. a4 {[%clk 0:02:32]}  Qxd6 {[%clk 0:02:33]} 14. Rxd6 {[%clk 0:02:30]}  g5 {[%clk 0:02:33]} 15. Bg3 {[%clk 0:02:30]}  Bf8 {[%clk 0:02:34]} 16. Rd2 {[%clk 0:02:23]}  Bb4 {[%clk 0:02:26]} 17. Rfd1 {[%clk 0:02:23]}  g4 {[%clk 0:01:34]} 18. Nh4 {[%clk 0:02:11]}  Bxc3 {[%clk 0:01:33]} 19. bxc3 {[%clk 0:02:11]}  Nc5 {[%clk 0:01:29]} 20. f3 {[%clk 0:02:10]}  gxf3 {[%clk 0:01:27]} 21. gxf3 {[%clk 0:02:11]}  Bh3 {[%clk 0:01:11]} 22. Rd6 {[%clk 0:02:07]}  Kg7 {[%clk 0:01:09]} 23. Bf2 {[%clk 0:02:03]}  Ne6 {[%clk 0:01:06]} 24. Nf5+ {[%clk 0:01:59]}  Bxf5 {[%clk 0:01:06]} 25. exf5 {[%clk 0:02:00]}  Nf4 {[%clk 0:01:06]} 26. Kh1 {[%clk 0:02:00]}  Kf8 {[%clk 0:01:01]} 27. Rxf6 {[%clk 0:01:58]} 1-0


[Site "https://www.chess.com"]